bitfinex/quotes_SOLUSD_20250731
["timestamp","ask_amount","ask_price","bid_price","bid_amount"]
[1753947836777,25.94010838,181.26,181.25,0.06]
[1753947839566,22.77788692,181.26,181.25,0.06]
[1753947839767,25.94010838,181.26,181.25,0.06]
[1753947842567,22.77788692,181.26,181.25,0.06]
[1753947842767,22.05788692,181.26,181.25,0.06]
[1753947843076,22.75788692,181.26,181.25,0.06]
[1753947843384,25.92010838,181.26,181.25,0.06]
[1753947843564,25.92432701,181.26,181.25,0.06]
[1753947843765,25.22432701,181.26,181.25,0.06]
[1753947844981,25.92432701,181.26,181.25,0.06]
[1753947845364,21.29976023,181.26,181.25,0.06]
[1753947846466,21.29976023,181.26,181.24,0.06]
[1753947846467,25.93505522,181.26,181.24,0.06]
[1753947846793,11.92060178,181.25,181.24,0.06]
[1753947846976,11.92060178,181.25,181.24,152.49060543]
[1753947847467,11.92060178,181.25,181.24,153.15060543]
[1753947848387,11.92060178,181.25,181.24,132.5437]
[1753947849177,17.43784315,181.25,181.24,132.5437]
[1753947849490,17.44001003,181.25,181.24,132.5437]
[1753947851186,11.92276866,181.25,181.24,133.2037]
[1753947852180,11.92276866,181.25,181.24,136.36592146]
[1753947853993,8.23523795,181.25,181.24,136.36592146]
[1753947855392,8.23548572,181.25,181.24,133.2037]
[1753947855781,8.24213418,181.25,181.24,132.5437]
[1753947856091,6.21663264,181.27,181.24,132.5437]
[1753947856279,3.70931673,181.25,181.24,132.5437]
[1753947856476,7.83031491,181.25,181.24,132.5437]
[1753947856798,4.12099818,181.25,181.24,133.2037]
[1753947857677,4.1198275,181.25,181.24,133.2037]
[1753947857881,5.51663264,181.27,181.24,133.2037]
[1753947858086,8.23943561,181.26,181.24,133.2037]
[1753947858290,8.23943561,181.25,181.24,133.2037]
[1753947859096,8.23943561,181.25,181.24,132.5437]
[1753947863390,8.23474124,181.25,181.24,132.5437]
[1753947865703,0.03,181.26,181.25,16.78468397]
[1753947865880,0.03,181.26,181.25,33.8375154]
[1753947866704,0.03,181.26,181.25,39.35475677]
[1753947868285,0.03,181.26,181.25,26.70587093]
[1753947869016,0.03,181.26,181.25,21.18862956]
[1753947869183,0.03,181.26,181.25,58.14690543]
[1753947870513,0.03,181.26,181.25,55.67468397]
[1753947870796,0.03,181.26,181.25,58.83690543]
[1753947871392,0.03,181.26,181.25,146.50690543]
[1753947872318,0.03,181.26,181.25,143.34468397]
[1753947872486,0.03,181.26,181.25,146.50690543]
[1753947873809,0.03,181.26,181.25,152.0241468]
[1753947877314,0.03,181.28,181.27,87.64]
[1753947877489,0.03,181.28,181.27,129.00222146]
[1753947878221,0.7,181.28,181.27,129.00222146]
[1753947879405,0.7,181.28,181.27,145.78690543]
[1753947879610,0.7,181.28,181.27,142.62468397]
[1753947880497,4.40417704,181.28,181.27,142.62468397]
[1753947883403,0.7,181.28,181.27,142.62468397]
[1753947884422,0.03,181.28,181.27,142.62468397]
[1753947887098,4.1461335,181.28,181.27,142.62468397]
[1753947888723,4.1461335,181.28,181.27,145.78690543]
[1753947889213,8.26327834,181.28,181.27,145.78690543]
[1753947889517,11.96687953,181.28,181.27,145.78690543]
[1753947890429,12.63687953,181.28,181.27,145.78690543]
[1753947891121,12.63851942,181.28,181.27,145.78690543]
[1753947894126,11.96851942,181.28,181.27,145.78690543]
[1753947894424,0.03,181.28,181.27,152.01353807]
[1753947895227,0.03,181.29,181.28,109.9110123]
[1753947895431,0.03,181.29,181.28,113.78323376]
[1753947895900,0.03,181.29,181.28,108.26690543]
[1753947898621,0.03,181.29,181.28,113.78323376]
[1753947899138,0.03,181.29,181.28,121.68433376]
[1753947900846,0.03,181.29,181.28,123.45613402]
[1753947901715,3.73829249,181.36,181.32,87.49]
[1753947901920,8.23491896,181.35,181.33,59.91870569]
[1753947902105,0.03,181.36,181.33,60.47018641]
[1753947902307,8.23183344,181.35,181.33,67.39478641]
[1753947902616,0.03,181.36,181.33,67.39478641]
[1753947902811,0.03,181.36,181.35,9.86804344]
[1753947903011,0.03,181.36,181.35,65.42414731]
[1753947903230,0.03,181.36,181.35,66.11414731]
[1753947903634,0.03,181.36,181.35,71.62834637]
[1753947904811,0.03,181.36,181.35,66.69432465]
[1753947906228,0.03,181.36,181.35,71.62834637]
[1753947906434,0.03,181.36,181.35,66.69432465]
[1753947906808,0.03,181.38,181.37,104.21468397]
[1753947907012,0.03,181.38,181.37,147.40870569]
[1753947911026,0.03,181.38,181.37,152.92229669]
[1753947911230,0.03,181.38,181.37,153.61229669]
[1753947915751,0.74,181.42,181.41,104.09468397]
[1753947915971,0.03,181.42,181.41,147.26870569]
[1753947916627,0.74,181.42,181.41,147.26870569]
[1753947918333,0.03,181.42,181.41,147.26870569]
[1753947921041,0.03,181.42,181.41,147.92870569]
[1753947921649,0.03,181.43,181.42,104.06468397]
[1753947921824,0.03,181.43,181.42,108.99870569]
[1753947923451,0.03,181.43,181.42,115.72198426]
[1753947923626,0.03,181.43,181.42,115.17077712]
[1753947924233,0.03,181.43,181.42,262.17077712]
[1753947924547,0.03,181.43,181.42,267.10479884]
[1753947924733,0.03,181.43,181.42,262.17077712]
[1753947927061,0.03,181.43,181.42,300.39077712]
[1753947927750,31.50941082,181.51,181.47,103.05468397]
[1753947927954,31.50941082,181.51,181.47,146.20870569]
[1753947929061,30.93402172,181.51,181.47,141.27468397]
[1753947929238,4.93402172,181.5,181.47,141.27468397]
[1753947929554,5.71024906,181.48,181.47,141.27468397]
[1753947929736,6.43024906,181.48,181.47,141.27468397]
[1753947933074,11.36427078,181.48,181.47,141.27468397]
[1753947933254,15.45963444,181.48,181.47,141.27468397]
[1753947933553,15.45948179,181.48,181.47,141.27468397]
[1753947934938,10.52546007,181.48,181.47,141.27468397]
[1753947937862,14.21790988,181.48,181.47,141.27468397]
[1753947938047,19.1519316,181.48,181.47,141.27468397]
[1753947939257,23.25593026,181.48,181.47,141.27468397]
[1753947939448,18.32190854,181.48,181.47,141.27468397]
[1753947939658,14.21790988,181.48,181.47,141.27468397]
[1753947940235,18.32331715,181.48,181.47,141.27468397]
[1753947940847,14.21790988,181.48,181.47,141.27468397]
[1753947941259,18.32462803,181.48,181.47,141.27468397]
[1753947942454,49.25864975,181.48,181.47,86.27]
[1753947942657,26.0,181.45,181.43,103.05468397]
[1753947942858,12.72168254,181.44,181.43,103.05468397]
[1753947943049,17.55249795,181.44,181.43,141.29468397]
[1753947944173,23.06396179,181.44,181.43,141.29468397]
[1753947944958,23.0821034,181.44,181.43,141.29468397]
[1753947945161,18.14808168,181.44,181.43,141.29468397]
[1753947945749,23.0821034,181.44,181.43,141.29468397]
[1753947946470,23.0821034,181.44,181.43,141.35468397]
[1753947948682,18.14808168,181.44,181.43,141.35468397]
[1753947948854,23.08517329,181.44,181.43,141.35468397]
[1753947951879,23.08517329,181.44,181.43,124.57]
[1753947952776,23.08517329,181.44,181.43,86.33]
[1753947954267,23.08517329,181.44,181.43,0.06]
[1753947957475,23.09517735,181.44,181.43,0.06]
[1753947960460,23.09778915,181.44,181.43,0.06]
[1753947963992,22.37778915,181.44,181.43,0.06]
[1753947964493,23.07778915,181.44,181.43,0.06]
[1753947964692,22.37778915,181.44,181.43,0.06]
[1753947964988,17.44376743,181.44,181.43,0.06]
[1753947965189,21.29975601,181.44,181.43,0.06]
[1753947965390,15.78829217,181.44,181.43,0.06]
[1753947965569,15.08829217,181.44,181.43,38.97]
[1753947965984,15.08829217,181.44,181.43,125.24]
[1753947966182,11.93230359,181.44,181.43,125.24]
[1753947966877,17.44376743,181.44,181.43,125.24]
[1753947967690,11.93230359,181.44,181.43,125.24]
[1753947968375,11.93230359,181.44,181.43,142.02468397]
[1753947969273,11.93230359,181.44,181.43,141.33468397]
[1753947969671,16.8622505,181.44,181.43,141.33468397]
[1753947970199,11.93230359,181.44,181.43,142.02468397]
[1753947970397,11.93230359,181.44,181.43,146.95463088]
[1753947970892,3.69244981,181.44,181.43,142.02468397]
[1753947971087,4.11668216,181.46,181.44,16.78468397]
[1753947971288,7.80913197,181.46,181.45,55.04468397]
[1753947971493,11.9256961,181.46,181.45,55.04468397]
[1753947971791,11.9256961,181.46,181.45,55.73468397]
[1753947972588,11.9256961,181.46,181.45,60.66463088]
[1753947972792,7.80913197,181.46,181.45,66.80823088]
[1753947973170,4.11668216,181.46,181.45,66.80823088]
[1753947973496,3.69244981,181.47,181.46,16.78468397]
[1753947973693,0.2,181.48,181.46,21.71463088]
[1753947973873,0.2,181.48,181.47,55.77468397]
[1753947974288,8.43633462,181.48,181.47,55.77468397]
[1753947974474,12.12878443,181.48,181.47,55.77468397]
[1753947975800,12.12878443,181.48,181.47,60.70463088]
[1753947975996,12.1288651,181.48,181.47,60.70463088]
[1753947978001,12.1288651,181.48,181.47,146.97463088]
[1753947979178,8.01069779,181.48,181.47,152.48518358]
[1753947979374,4.31824798,181.48,181.47,152.48518358]
[1753947979580,0.2,181.48,181.47,152.48518358]
[1753947979780,0.2,181.48,181.47,146.97463088]
[1753947982091,0.05461162,181.48,181.47,146.97463088]
[1753947983803,0.05461162,181.48,181.47,152.48518358]
[1753947989617,0.05461162,181.48,181.47,152.54518358]
[1753947989825,0.7,181.52,181.51,16.78468397]
[1753947990002,0.7,181.52,181.51,141.23007235]
[1753947991906,11.13898172,181.52,181.51,141.23007235]
[1753947992215,18.94318988,181.52,181.51,141.23007235]
[1753947992902,18.11962821,181.52,181.51,141.23007235]
[1753947993097,23.04957512,181.52,181.51,124.44538838]
[1753947997296,11.9105934,181.52,181.51,141.94007235]
[1753947997514,7.80420816,181.52,181.51,141.94007235]
[1753947997909,4.10696255,181.52,181.51,141.94007235]
[1753947998605,4.10601651,181.53,181.52,16.78468397]
[1753947998801,11.90928478,181.53,181.52,55.06468397]
[1753947999227,11.90928478,181.53,181.52,55.77468397]
[1753947999617,11.90928478,181.53,181.52,55.06468397]
[1753947999822,7.80326827,181.53,181.52,55.06468397]
[1753948000326,8.50326827,181.53,181.52,55.06468397]
[1753948001698,13.43321518,181.53,181.52,141.25007235]
[1753948001899,17.53802523,181.53,181.52,141.25007235]
[1753948003214,16.83802523,181.53,181.52,141.25007235]
[1753948003421,11.90807832,181.53,181.52,141.25007235]
[1753948003624,12.73321518,181.53,181.52,141.25007235]
[1753948003824,13.43321518,181.53,181.52,141.25007235]
[1753948004634,7.80326827,181.53,181.52,141.25007235]
[1753948005124,7.80326827,181.53,181.52,141.96007235]
[1753948005332,7.80326827,181.53,181.52,141.25007235]
[1753948007007,7.80326827,181.53,181.52,141.96007235]
[1753948007627,4.10602266,181.53,181.52,141.96007235]
[1753948008413,4.10602266,181.53,181.52,141.25007235]
[1753948008625,3.69724561,181.54,181.52,146.89001926]
[1753948008816,3.6995956,181.56,181.54,16.78468397]
[1753948009008,3.6995956,181.58,181.56,16.78468397]
[1753948009207,3.6995956,181.58,181.57,38.28]
[1753948009208,9.32954251,181.58,181.57,38.28]
[1753948009428,23.06015156,181.58,181.57,38.28]
[1753948011838,27.68170858,181.58,181.57,38.28]
[1753948012217,23.06015156,181.58,181.55,38.28]
[1753948012410,10.43776801,181.56,181.55,38.28]
[1753948012737,23.04361451,181.56,181.54,86.18538838]
[1753948012940,12.6058465,181.55,181.54,141.25007235]
[1753948013112,17.53579341,181.55,181.54,141.25007235]
[1753948013320,16.85579341,181.55,181.54,141.25007235]
[1753948014237,11.9258465,181.55,181.54,141.25007235]
[1753948014426,16.85579341,181.55,181.54,141.25007235]
[1753948015035,11.9258465,181.55,181.54,141.93007235]
[1753948015727,11.9258465,181.55,181.54,141.25007235]
[1753948016120,16.85579341,181.55,181.54,141.25007235]
[1753948017144,11.9258465,181.55,181.54,141.93007235]
[1753948018758,11.9258465,181.55,181.54,147.43850024]
[1753948020921,11.93589041,181.55,181.54,147.43850024]
[1753948025524,4.92994691,181.59,181.55,16.78468397]
[1753948025725,8.25118608,181.58,181.57,16.78468397]
[1753948025925,11.96415712,181.58,181.57,16.78468397]
[1753948026848,11.96171342,181.58,181.57,17.46468397]
[1753948027425,7.83734223,181.58,181.57,17.46468397]
[1753948027727,4.12437119,181.58,181.57,17.46468397]
[1753948027924,4.12437119,181.58,181.57,109.15759011]
[1753948028246,26.0,181.61,181.57,109.15759011]
[1753948028560,12.63128396,181.6,181.58,38.26]
[1753948028846,4.12110509,181.59,181.58,55.04468397]
[1753948029445,3.70907363,181.6,181.59,16.78468397]
[1753948029638,4.92994691,181.62,181.59,17.46468397]
[1753948029823,8.23877949,181.61,181.6,38.24]
[1753948030136,11.94620155,181.61,181.6,38.24]
[1753948030334,7.8268104,181.61,181.6,38.24]
[1753948030524,11.94468102,181.61,181.6,38.24]
[1753948030720,16.87462793,181.61,181.6,38.24]
[1753948030928,17.55462793,181.61,181.6,55.02468397]
[1753948032924,16.87462793,181.61,181.6,55.02468397]
[1753948034156,16.90462793,181.61,181.6,141.21007235]
[1753948035043,17.58462793,181.61,181.6,141.21007235]
[1753948035351,13.46675731,181.61,181.6,141.21007235]
[1753948036236,9.75933525,181.61,181.6,141.21007235]
[1753948036748,9.07933525,181.61,181.6,141.21007235]
[1753948037245,12.78020001,181.61,181.6,141.21007235]
[1753948037631,13.46020001,181.61,181.6,141.21007235]
[1753948037825,12.78020001,181.61,181.6,141.21007235]
[1753948038454,4.95994691,181.61,181.6,141.21007235]
[1753948038827,8.66076057,181.61,181.6,141.21007235]
[1753948039035,4.95994691,181.61,181.6,141.21007235]
[1753948039249,9.07220332,181.61,181.6,141.21007235]
[1753948039554,4.95994691,181.61,181.6,141.21007235]
[1753948039754,0.03,181.61,181.6,141.21007235]
[1753948040054,4.95994691,181.61,181.6,141.21007235]
[1753948040259,9.07210815,181.61,181.6,141.21007235]
[1753948040435,4.95994691,181.61,181.6,141.21007235]
[1753948040635,5.63994691,181.61,181.6,141.21007235]
[1753948040951,13.4524496,181.61,181.6,141.21007235]
[1753948041854,13.45276348,181.61,181.6,141.21007235]
[1753948042154,17.56532773,181.61,181.6,141.21007235]
[1753948042756,16.88532773,181.61,181.6,141.21007235]
[1753948043562,16.88538925,181.61,181.6,141.21007235]
[1753948044354,12.77276348,181.61,181.6,141.92007235]
[1753948044862,10.99214129,181.61,181.6,141.21007235]
[1753948045041,10.99214129,181.61,181.6,141.92007235]
[1753948045458,10.99214129,181.61,181.6,141.21007235]
[1753948046367,11.68214129,181.61,181.6,141.21007235]
[1753948046664,15.79650403,181.61,181.6,141.21007235]
[1753948046843,7.57129111,181.61,181.6,141.21007235]
[1753948047042,11.68441746,181.61,181.6,141.21007235]
[1753948047242,7.57129111,181.61,181.6,141.21007235]
[1753948047754,11.68484138,181.61,181.6,141.21007235]
[1753948047962,7.57129111,181.61,181.6,141.21007235]
[1753948048679,15.79936893,181.61,181.6,141.21007235]
[1753948049482,15.79973279,181.61,181.6,141.21007235]
[1753948049678,21.3060375,181.61,181.6,141.21007235]
[1753948050371,15.79973279,181.61,181.6,141.21007235]
[1753948050746,21.3060375,181.61,181.6,124.42538838]
[1753948051439,21.3060375,181.61,181.6,86.18538838]
[1753948051958,26.0,181.59,181.56,102.97007235]
[1753948052151,12.62040807,181.58,181.57,38.24]
[1753948052356,15.76973279,181.58,181.56,141.21007235]
[1753948052569,8.5060053,181.57,181.56,141.21007235]
[1753948052746,11.65533002,181.57,181.56,141.21007235]
[1753948054853,13.4300773,181.57,181.56,141.21007235]
[1753948055058,18.93759506,181.57,181.56,141.21007235]
[1753948055258,16.86228545,181.57,181.56,141.92007235]
[1753948060977,16.86228545,181.57,181.56,141.21007235]
[1753948061163,11.94213486,181.57,181.56,141.21007235]
[1753948061473,16.86620686,181.57,181.56,141.21007235]
[1753948062181,23.06372462,181.57,181.56,124.42538838]
[1753948063183,16.86620686,181.57,181.56,124.42538838]
[1753948065887,16.86620686,181.57,181.56,125.13538838]
[1753948066766,11.94213486,181.57,181.56,141.92007235]
[1753948068484,4.924072,181.59,181.57,16.78468397]
[1753948068691,4.924072,181.59,181.58,38.95]
[1753948068873,13.17369998,181.59,181.58,38.95]
[1753948069065,16.88611527,181.59,181.58,38.95]
[1753948069400,16.88611527,181.59,181.58,55.73468397]
[1753948069564,16.88684892,181.59,181.58,141.92007235]
[1753948069764,11.96277692,181.59,181.58,141.92007235]
[1753948070782,16.88684892,181.59,181.58,141.21007235]
[1753948071291,17.58684892,181.59,181.58,141.21007235]
[1753948073586,16.88684892,181.59,181.58,141.21007235]
[1753948076065,16.89018119,181.59,181.58,141.21007235]
[1753948078093,16.89018119,181.59,181.58,102.97007235]
[1753948078290,16.89018119,181.59,181.58,141.19007235]
[1753948078487,11.96610919,181.59,181.58,141.19007235]
[1753948078796,11.96610919,181.59,181.58,141.91007235]
[1753948080197,11.96610919,181.59,181.58,103.69007235]
[1753948080376,15.11591233,181.59,181.58,141.19007235]
[1753948081294,15.11655281,181.59,181.58,141.19007235]
[1753948081480,15.81655281,181.59,181.58,141.19007235]
[1753948081881,15.81655281,181.59,181.58,102.97007235]
[1753948082201,21.32346398,181.59,181.58,102.97007235]
[1753948082577,15.11655281,181.59,181.58,141.19007235]
[1753948082886,15.11655281,181.59,181.58,102.97007235]
[1753948083097,15.11655281,181.59,181.58,141.19007235]
[1753948083978,15.11655281,181.59,181.58,141.91007235]
[1753948084179,11.96774197,181.59,181.58,141.19007235]
[1753948084482,11.96821281,181.59,181.58,141.19007235]
[1753948085199,11.97101026,181.59,181.58,141.91007235]
[1753948085774,11.97101026,181.59,181.58,141.19007235]
[1753948087200,7.8431115,181.59,181.58,141.19007235]
[1753948087403,15.12111435,181.59,181.58,141.19007235]
[1753948087594,15.82111435,181.59,181.58,141.19007235]
[1753948087782,21.32802552,181.59,181.58,141.19007235]
[1753948088411,17.20012676,181.59,181.58,102.97007235]
[1753948088611,21.32860095,181.59,181.58,141.19007235]
[1753948088917,15.12213386,181.59,181.58,141.19007235]
[1753948089086,15.12213386,181.59,181.58,141.91007235]
[1753948089800,11.97233072,181.59,181.58,141.91007235]
[1753948090197,15.12213386,181.59,181.58,141.91007235]
[1753948090402,15.12254952,181.59,181.58,141.91007235]
[1753948090604,15.12254952,181.59,181.58,141.19007235]
[1753948092212,15.1238332,181.59,181.58,141.19007235]
[1753948093010,11.97403006,181.59,181.58,141.91007235]
[1753948093204,15.1238332,181.59,181.58,141.91007235]
[1753948094517,15.1238332,181.59,181.58,141.19007235]
[1753948095086,15.1238332,181.59,181.58,141.91007235]
[1753948098015,15.1238332,181.59,181.58,141.19007235]
[1753948098893,15.1238332,181.59,181.58,102.97007235]
[1753948099106,15.1538332,181.59,181.58,141.17007235]
[1753948099612,15.1538332,181.59,181.58,141.89007235]
[1753948099792,12.00403006,181.59,181.58,141.89007235]
[1753948101714,8.28753364,181.59,181.58,141.89007235]
[1753948101918,12.005136,181.59,181.58,141.89007235]
[1753948102117,12.005136,181.59,181.58,103.69007235]
[1753948102322,12.00687573,181.59,181.58,141.89007235]
[1753948104001,12.00687573,181.59,181.58,146.68897549]
[1753948104200,3.74760236,181.59,181.58,146.68897549]
[1753948104401,0.03,181.59,181.58,152.19618994]
[1753948104725,0.03,181.61,181.59,102.94007235]
[1753948104908,0.03,181.61,181.6,41.34980314]
[1753948105220,0.03,181.61,181.6,144.98987549]
[1753948110909,0.2,181.66,181.64,99.16246999]
[1753948111108,0.2,181.66,181.65,38.2]
[1753948111318,8.45032503,181.66,181.65,38.9]
[1753948112419,4.32501627,181.66,181.65,38.9]
[1753948114338,0.2,181.66,181.65,38.9]
[1753948117024,0.2,181.66,181.65,121.27778602]
[1753948122234,4.00980314,181.66,181.65,82.37778602]
[1753948122445,26.0,181.63,181.6,0.06]
[1753948122735,11.37634724,181.62,181.6,0.06]
[1753948123040,7.81726626,181.61,181.6,0.06]
[1753948123243,12.59064628,181.61,181.6,0.06]
[1753948124244,18.09695099,181.61,181.6,0.06]
[1753948124836,23.02016988,181.61,181.6,0.06]
[1753948125444,18.90678986,181.61,181.6,0.06]
[1753948125743,18.90693325,181.61,181.6,0.06]
[1753948129243,23.0206725,181.61,181.6,0.06]
[1753948129444,18.90693325,181.61,181.6,0.06]
[1753948130246,23.02068328,181.61,181.6,0.06]
[1753948130454,18.90693325,181.61,181.6,0.06]
[1753948132346,23.02065452,181.61,181.6,0.06]
[1753948132527,18.90693325,181.61,181.6,0.06]
[1753948133548,23.02051119,181.61,181.6,0.06]
[1753948137062,18.90714558,181.61,181.6,0.06]
[1753948141851,39.57661074,181.61,181.6,0.06]
[1753948142959,39.57674542,181.61,181.6,0.06]
[1753948144353,23.02091042,181.61,181.6,0.06]
[1753948144728,21.24861122,181.61,181.6,0.06]
[1753948146155,21.24855142,181.61,181.6,0.06]
[1753948153746,21.24804997,181.61,181.6,0.06]
[1753948154957,21.24757997,181.61,181.6,0.06]
[1753948160682,21.24757997,181.61,181.58,82.37778602]
[1753948160840,26.0,181.58,181.57,0.06]
[1753948161043,36.9676451,181.58,181.57,0.06]
[1753948161243,37.6676451,181.58,181.57,0.06]
[1753948161462,41.78536042,181.58,181.57,0.06]
[1753948161856,43.29329242,181.58,181.57,0.06]
[1753948162048,41.08536042,181.58,181.57,0.76]
[1753948162464,41.08536042,181.58,181.57,0.06]
[1753948162671,46.59257487,181.58,181.57,0.06]
[1753948162858,47.29257487,181.58,181.57,0.06]
[1753948164068,47.29257487,181.58,181.57,0.76]
[1753948164069,41.08536042,181.58,181.57,0.76]
[1753948165974,41.09449111,181.58,181.57,0.76]
[1753948166470,11.94357142,181.58,181.57,0.76]
[1753948167182,11.94357142,181.58,181.57,39.0]
[1753948169654,11.96017457,181.58,181.57,39.0]
[1753948170274,11.96017457,181.58,181.57,121.37778602]
[1753948170948,11.97231584,181.58,181.57,121.37778602]
[1753948171456,7.84248004,181.58,181.57,121.37778602]
[1753948171656,4.20981074,181.58,181.57,121.37778602]
[1753948171867,8.33970606,181.58,181.57,121.37778602]
[1753948172078,4.20981074,181.58,181.57,121.37778602]
[1753948172253,8.25995688,181.58,181.57,121.37778602]
[1753948172455,4.12995231,181.58,181.57,121.37778602]
[1753948172877,8.25990462,181.58,181.57,121.37778602]
[1753948178961,8.2601822,181.58,181.57,121.37778602]
[1753948179669,8.26045888,181.58,181.57,121.37778602]
[1753948180793,8.26018556,181.58,181.57,121.37778602]
[1753948182681,8.2596661,181.58,181.57,121.37778602]
[1753948183684,11.97659602,181.58,181.57,121.37778602]
[1753948184189,7.8466399,181.58,181.57,138.16246999]
[1753948184690,4.12970998,181.58,181.57,138.16246999]
[1753948185592,7.84644064,181.59,181.58,22.90608397]
[1753948185781,11.97553982,181.59,181.58,147.33478968]
[1753948185979,0.03,181.6,181.58,147.33478968]
[1753948186195,0.03,181.6,181.59,20.63560366]
[1753948187771,0.03,181.6,181.59,16.78468397]
[1753948187977,0.73,181.6,181.59,16.78468397]
[1753948188691,0.03,181.6,181.59,16.78468397]
[1753948189095,0.73,181.6,181.59,16.78468397]
[1753948189685,0.03,181.6,181.59,16.78468397]
[1753948190585,0.03,181.6,181.59,17.48468397]
[1753948190998,0.03,181.6,181.59,99.86246999]
[1753948191187,0.03,181.6,181.59,103.01338968]
[1753948191370,0.03,181.6,181.59,108.52030085]
[1753948193293,0.03,181.6,181.59,103.01338968]
[1753948196887,7.61085655,181.64,181.6,82.34778602]
[1753948197084,7.61085655,181.64,181.62,16.78468397]
[1753948197085,12.39627045,181.64,181.62,16.78468397]
[1753948197411,15.82134875,181.63,181.62,38.2]
[1753948197779,15.82134875,181.63,181.6,82.34778602]
[1753948197987,15.82134875,181.62,181.61,38.22]
[1753948198681,12.67042906,181.62,181.61,38.22]
[1753948198998,21.32735029,181.62,181.61,38.22]
[1753948200481,21.32735029,181.62,181.6,82.34778602]
[1753948200777,21.32735029,181.62,181.57,0.06]
[1753948200778,15.82185261,181.61,181.57,0.06]
[1753948200986,29.15091969,181.58,181.57,0.06]
[1753948201185,41.10287007,181.58,181.57,0.06]
[1753948201603,41.82287007,181.58,181.57,0.06]
[1753948202208,48.91838452,181.58,181.57,0.06]
[1753948204887,50.69282482,181.58,181.57,0.06]
[1753948208517,52.90100082,181.58,181.57,0.06]
[1753948214511,51.31270082,181.58,181.57,0.06]
[1753948217121,51.30302303,181.58,181.57,0.06]
[1753948217619,51.29264188,181.58,181.57,0.06]
[1753948218524,51.29233089,181.58,181.56,0.06]
[1753948218698,55.13694044,181.57,181.56,0.06]
[1753948218900,55.85694044,181.57,181.56,0.06]
[1753948219397,17.57694044,181.57,181.56,0.06]
[1753948219602,55.85694044,181.57,181.56,0.06]
[1753948220227,61.3644582,181.57,181.56,0.06]
[1753948222134,60.6444582,181.57,181.56,0.06]
[1753948223418,52.42281461,181.57,181.56,0.06]
[1753948223629,60.63860863,181.57,181.56,0.06]
[1753948224723,63.55690663,181.57,181.56,0.06]
[1753948227113,63.55690663,181.57,181.55,0.06]
[1753948227337,17.56109087,181.56,181.55,0.06]
[1753948227836,34.12606687,181.56,181.55,0.06]
[1753948229138,39.63388797,181.56,181.55,0.06]
[1753948232643,39.63342107,181.56,181.55,0.06]
[1753948232942,35.52552406,181.56,181.55,0.06]
[1753948233147,35.52577381,181.56,181.55,0.06]
[1753948233327,26.49273396,181.56,181.55,0.06]
[1753948233520,31.41809395,181.56,181.55,0.06]
[1753948233712,39.63345367,181.56,181.55,0.06]
[1753948233918,77.22345367,181.56,181.55,0.06]
[1753948234214,56.55079781,181.56,181.55,0.75]
[1753948234415,60.65828515,181.56,181.55,0.75]
[1753948235334,60.65828515,181.56,181.55,0.06]
[1753948236014,63.53312418,181.56,181.55,0.06]
[1753948239639,63.53911274,181.56,181.55,0.06]
[1753948241745,25.23911274,181.56,181.55,0.06]
[1753948241947,20.31375275,181.56,181.55,0.75]
[1753948242244,22.36427371,181.56,181.55,0.75]
[1753948242842,17.43891372,181.56,181.55,0.75]
[1753948243149,37.93109262,181.56,181.55,0.75]
[1753948244043,17.43891372,181.56,181.55,0.75]
[1753948244241,43.43891372,181.56,181.55,0.75]
[1753948245925,37.93109262,181.56,181.55,0.75]
[1753948246126,37.95314755,181.56,181.55,0.75]
[1753948247430,43.46096865,181.56,181.55,0.75]
[1753948247637,43.46096865,181.56,181.55,0.06]
[1753948247824,48.38632864,181.56,181.55,0.06]
[1753948248043,49.09632864,181.56,181.55,0.06]
[1753948248635,49.11542743,181.56,181.55,0.06]
[1753948249253,27.76160925,181.56,181.55,0.06]
[1753948251338,66.06160925,181.56,181.55,0.06]
[1753948251543,66.06552935,181.56,181.55,0.06]
[1753948252560,61.14016936,181.56,181.55,0.06]
[1753948252750,66.06552935,181.56,181.55,0.06]
[1753948253469,66.06552935,181.56,181.54,0.06]
[1753948253470,63.48602677,181.56,181.54,0.06]
[1753948253673,38.69616644,181.55,181.54,0.06]
[1753948253842,43.62152643,181.55,181.54,0.06]
[1753948254042,43.62196171,181.55,181.54,0.06]
[1753948254471,49.13015907,181.55,181.54,0.06]